Workbook

Sheet 1 初婚-再婚別，年次別婚姻件数・再婚の割合・婚姻率
A1: 第7章 婚 姻
A2: 1 年次別にみた初婚-再婚別婚姻件数・総件数に対する再婚件数の割合及び婚姻率（人口千対）
A4: 年 次 | B4: 総数 | C4: 夫 | E4: 妻 | G4: 総件数に対する 再婚件数の割合 | I4: 婚姻率
C5: 初婚 | D5: 再婚 | E5: 初婚 | F5: 再婚 | G5: 夫 | H5: 妻
A6: 1950 昭和25年 | B6: 3105 | C6: … | D6: … | E6: … | F6: … | G6: ・ | H6: ・ | I6: 9.893261112 | K6: 313850
A7: 55 30 | B7: 4154 | C7: … | D7: … | E7: … | F7: … | G7: ・ | H7: ・ | I7: 9.737002485 | K7: 426620
A8: 60 35 | B8: 6651 | C8: 5961 | D8: 690 | E8: 6175 | F8: 476 | G8: 10.37437979 | H8: 7.156818524 | I8: 12.69664916 | K8: 523839
A9: 65 40 | B9: 10222 | C9: 9235 | D9: 987 | E9: 9469 | F9: 753 | G9: 9.655644688 | H9: 7.366464488 | I9: 12.85934976 | K9: 794908
A10: 70 45 | B10: 12776 | C10: 11476 | D10: 1300 | E10: 11714 | F10: 1062 | G10: 10.17532874 | H10: 8.312460864 | I10: 12.64796465 | K10: 1010123
A11: 72 47 | B11: 14158 | C11: 12532 | D11: 1626 | E11: 13001 | F11: 1157 | G11: 11.48467298 | H11: 8.1720582 | I11: 12.88142502 | K11: 1099102
A12: 73 48 | B12: 15047 | C12: 13308 | D12: 1739 | E12: 13633 | F12: 1414 | G12: 11.55712102 | H12: 9.397222038 | I12: 13.05735883 | K12: 1152377
A13: 74 49 | B13: 15712 | C13: 13336 | D13: 2376 | E13: 13594 | F13: 2118 | G13: 15.12219959 | H13: 13.48014257 | I13: 13.07700887 | K13: 1201498
A14: 75 50 | B14: 14533 | C14: 12692 | D14: 1841 | E14: 12939 | F14: 1594 | G14: 12.66772174 | H14: 10.96814147 | I14: 11.71437023 | K14: 1240613
A15: 76 51 | B15: 13508 | C15: 11631 | D15: 1877 | E15: 11860 | F15: 1648 | G15: 13.89546935 | H15: 12.20017767 | I15: 10.5899582 | K15: 1275548
A16: 77 52 | B16: 12550 | C16: 10718 | D16: 1832 | E16: 10913 | F16: 1637 | G16: 14.59760956 | H16: 13.0438247 | I16: 9.611761426 | K16: 1305692
A17: 78 53 | B17: 11959 | C17: 10090 | D17: 1869 | E17: 10376 | F17: 1583 | G17: 15.62839702 | H17: 13.23689272 | I17: 8.966696733 | K17: 1333713
A18: 79 54 | B18: 12329 | C18: 10333 | D18: 1996 | E18: 10581 | F18: 1748 | G18: 16.18947198 | H18: 14.17795442 | I18: 9.018201714 | K18: 1367124
A19: 80 55 | B19: 12382 | C19: 10313 | D19: 2069 | E19: 10597 | F19: 1785 | G19: 16.70973995 | H19: 14.41608787 | I19: 8.833200048 | K19: 1401757
A20: 81 56 | B20: 12287 | C20: 10166 | D20: 2121 | E20: 10505 | F20: 1782 | G20: 17.26214698 | H20: 14.50313339 | I20: 8.577947129 | K20: 1432394
A21: 82 57 | B21: 12638 | C21: 10430 | D21: 2208 | E21: 10757 | F21: 1881 | G21: 17.47111885 | H21: 14.88368413 | I21: 8.637965492 | K21: 1463076
A22: 83 58 | B22: 12189 | C22: 10049 | D22: 2140 | E22: 10373 | F22: 1816 | G22: 17.55681352 | H22: 14.89867914 | I22: 8.162092774 | K22: 1493367
A23: 84 59 | B23: 12014 | C23: 9802 | D23: 2212 | E23: 10198 | F23: 1816 | G23: 18.41185284 | H23: 15.11569835 | I23: 7.905174751 | K23: 1519764
A24: 85 60 | B24: 11994 | C24: 9819 | D24: 2175 | E24: 10171 | F24: 1823 | G24: 18.13406703 | H24: 15.1992663 | I24: 7.78928282 | K24: 1539808
A25: 1986 昭和61年 | B25: 11788 | C25: 9512 | D25: 2276 | E25: 9902 | F25: 1886 | G25: 19.30777061 | H25: 15.99932134 | I25: 7.523274092 | K25: 1566871
A26: 87 62 | B26: 11423 | C26: 9133 | D26: 2290 | E26: 9490 | F26: 1933 | G26: 20.04727305 | H26: 16.92199947 | I26: 7.169824348 | K26: 1593205
A27: 88 63 | B27: 11982 | C27: 9512 | D27: 2470 | E27: 9894 | F27: 2088 | G27: 20.61425472 | H27: 17.42613921 | I27: 7.401500191 | K27: 1618861
A28: 89 平成元年 | B28: 11975 | C28: 9609 | D28: 2366 | E28: 9992 | F28: 1983 | G28: 19.75782881 | H28: 16.55949896 | I28: 7.279214878 | K28: 1645095
A29: 90 2 | B29: 12329 | C29: 9930 | D29: 2399 | E29: 10308 | F29: 2021 | G29: 19.45818801 | H29: 16.39224592 | I29: 7.391557713 | K29: 1667984
A30: 91 3 | B30: 12687 | C30: 10286 | D30: 2401 | E30: 10693 | F30: 1994 | G30: 18.92488374 | H30: 15.71687554 | I30: 7.485008743 | K30: 1694988
A31: 92 4 | B31: 12777 | C31: 10360 | D31: 2417 | E31: 10800 | F31: 1977 | G31: 18.91680363 | H31: 15.47311575 | I31: 7.45237062 | K31: 1714488
A32: 93 5 | B32: 13263 | C32: 10855 | D32: 2408 | E32: 11218 | F32: 2045 | G32: 18.1557717 | H32: 15.41883435 | I32: 7.673277924 | K32: 1728466
A33: 94 6 | B33: 12975 | C33: 10579 | D33: 2396 | E33: 11068 | F33: 1907 | G33: 18.46628131 | H33: 14.69749518 | I33: 7.454608758 | K33: 1740534
A34: 95 7 | B34: 13026 | C34: 10691 | D34: 2335 | E34: 11121 | F34: 1905 | G34: 17.92568709 | H34: 14.62459696 | I34: 7.434893314 | K34: 1752009
A35: 96 8 | B35: 13111 | C35: 10707 | D35: 2404 | E35: 11142 | F35: 1969 | G35: 18.33574861 | H35: 15.01792388 | I35: 7.388393612 | K35: 1774540
A36: 97 9 | B36: 12417 | C36: 10091 | D36: 2326 | E36: 10472 | F36: 1945 | G36: 18.73238302 | H36: 15.66400902 | I36: 6.932142935 | K36: 1791221
A37: 98 10 | B37: 12500 | C37: 10159 | D37: 2341 | E37: 10530 | F37: 1970 | G37: 18.728 | H37: 15.76 | I37: 6.930790787 | K37: 1803546
A38: 99 11 | B38: 12032 | C38: 9798 | D38: 2234 | E38: 10248 | F38: 1784 | G38: 18.56715426 | H38: 14.82712766 | I38: 6.64007033 | K38: 1812029
A39: 2000 12 | B39: 12642 | C39: 10181 | D39: 2461 | E39: 10687 | F39: 1955 | G39: 19.46685651 | H39: 15.46432526 | I39: 6.9588595 | K39: 1816677
A40: 01 13 | B40: 12430 | C40: 9928 | D40: 2502 | E40: 10421 | F40: 2009 | G40: 20.12872084 | H40: 16.16251006 | I40: 6.775008666 | K40: 1834684
A41: 02 14 | B41: 12118 | C41: 9583 | D41: 2535 | E41: 10037 | F41: 2081 | G41: 20.91929361 | H41: 17.17280079 | I41: 6.564339246 | K41: 1846035
A42: 03 15 | B42: 12158 | C42: 9539 | D42: 2619 | E42: 10036 | F42: 2122 | G42: 21.54137194 | H42: 17.45352854 | I42: 6.528272446 | K42: 1862361
A43: 04 16 | B43: 11554 | C43: 9026 | D43: 2528 | E43: 9554 | F43: 2000 | G43: 21.87986844 | H43: 17.3100225 | I43: 6.169691617 | K43: 1872703
A44: 05 17 | B44: 11191 | C44: 8756 | D44: 2435 | E44: 9215 | F44: 1976 | G44: 21.75855598 | H44: 17.65704584 | I44: 6 | K44: 1880863
A45: 06 18 | B45: 11644 | C45: 9039 | D45: 2605 | E45: 9535 | F45: 2109 | G45: 22.3720371 | H45: 18.11233253 | I45: =B45/K45*1000 -> 6.162607306 | K45: 1889460
A46: 07 19 | B46: 11357 | C46: 8817 | D46: 2540 | E46: 9395 | F46: 1962 | G46: 22.3650612 | H46: 17.275689 | I46: =B46/K46*1000 -> 5.990291687 | K46: 1895901
A47: 08 20 | B47: 11625 | C47: 9107 | D47: 2518 | E47: 9485 | F47: 2140 | G47: 21.66021505 | H47: 18.40860215 | I47: =B47/K47*1000 -> 6.115797697 | K47: 1900815
A48: 09 21 | B48: 11225 | C48: 8791 | D48: 2434 | E48: 9225 | F48: 2000 | G48: 21.68374165 | H48: 17.81737194 | I48: =B48/K48*1000 -> 5.884961969 | K48: 1907404
A49: 10 22 | B49: 11522 | C49: 8958 | D49: 2564 | E49: 9455 | F49: 2067 | G49: 22.25308106 | H49: 17.93959382 | I49: 6.042983751 | K49: 1906674
A50: 11 23 | B50: 10576 | C50: 8224 | D50: 2352 | E50: 8649 | F50: 1927 | G50: 22.23903177 | H50: 18.22049924 | I50: 5.502787555 | K50: 1921935
A51: 12 24 | B51: 10859 | C51: 8363 | D51: 2496 | E51: 8924 | F51: 1935 | G51: 22.98554195 | H51: 17.81932038 | I51: 5.629995396 | K51: 1928776
A52: 13 25 | B52: 10914 | C52: 8364 | D52: 2550 | E52: 8835 | F52: 2079 | G52: 23.36448598 | H52: 19.04892798 | I52: 5.636846403 | K52: 1936189
A53: 14 26 | B53: 10752 | C53: 8202 | D53: 2550 | E53: 8715 | F53: 2037 | G53: 23.71651786 | H53: 18.9453125 | I53: 5.534713443 | K53: 1942648
A54: 15 27 | B54: 10800 | C54: 8160 | D54: 2640 | E54: 8745 | F54: 2055 | G54: 24.44444444 | H54: 19.02777778 | I54: 2） 5.6 | K54: 1943527
A55: 16 28 | B55: 10495 | C55: 7966 | D55: 2529 | E55: 8505 | F55: 1990 | G55: 24.1 | H55: 19 | I55: 5.4 | K55: 1958405
A56: 17 29 | B56: 10134 | C56: 7764 | D56: 2370 | E56: 8243 | F56: 1891 | G56: 23.3866193 | H56: 18.65995658 | I56: 5.162722029 | K56: 1962918
A57: 18 30 | B57: =SUM(C57:D57) -> 9878 | C57: ='[1]■1 初婚-再婚別，年次別婚姻件数・再婚の割合・婚姻率'!$C$6 -> 7565 | D57: ='[1]■1 初婚-再婚別，年次別婚姻件数・再婚の割合・婚姻率'!$D$6 -> 2313 | E57: ='[1]■1 初婚-再婚別，年次別婚姻件数・再婚の割合・婚姻率'!$E$6 -> 8012 | F57: ='[1]■1 初婚-再婚別，年次別婚姻件数・再婚の割合・婚姻率'!$F$6 -> 1866 | G57: =D57/B57*100 -> 23.41567119 | H57: =F57/B57*100 -> 18.89046366 | I57: =B57/K57*1000 -> 5.0245684 | K57: =[2]人口!$B$42 -> 1965940
A58: 1) 本市の集計による。
A59: 2) 率算出に用いた人口は「平成27年国勢調査 年齢・国籍不詳をあん分した人口（参考表」（総務省統計局）における
A60: 日本人人口による。

Sheet 2 初婚再婚の組合せ別，年次別婚姻件数・再婚割合
A1: 2 夫妻の初婚・再婚の組合せ別にみた年次別婚姻件数及び百分率
A3: 年 次 | B3: 婚姻件数 | G3: 百分率
B4: 総数 | C4: 夫妻とも 初 婚 | D4: 夫初婚 妻再婚 | E4: 夫再婚 妻初婚 | F4: 夫妻とも 再 婚 | G4: 総数 | H4: 夫妻とも 初 婚 | I4: 夫初婚 妻再婚 | J4: 夫再婚 妻初婚 | K4: 夫妻とも 再 婚
A5: 85 60 | B5: =SUM(C5,F5,D5,E5) -> 11994 | C5: 9124 | D5: 695 | E5: 1047 | F5: 1128 | G5: =SUM(H5:K5) -> 100 | H5: =C5/$B5*100 -> 76.07136902 | I5: 5.794563949 | J5: 8.729364682 | K5: 9.404702351
A6: 1986 昭和61年 | B6: =SUM(C6,F6,D6,E6) -> 11788 | C6: 8839 | D6: 673 | E6: 1063 | F6: 1213 | G6: =SUM(H6:K6) -> 100 | H6: 74.98303359 | I6: 5.709195792 | J6: 9.017645063 | K6: 10.29012555
A7: 1987 昭和62年 | B7: =SUM(C7,F7,D7,E7) -> 11423 | C7: 8448 | D7: 685 | E7: 1042 | F7: 1248 | G7: =SUM(H7:K7) -> 100 | H7: 73.95605358 | I7: 5.996673378 | J7: 9.121946949 | K7: 10.9253261
A8: 1988 昭和63年 | B8: 11982 | C8: 8754 | D8: 758 | E8: 1140 | F8: 1330 | G8: 100 | H8: 73.05958938 | I8: 6.326155901 | J8: 9.514271407 | K8: 11.09998331
A9: 89 平成元年 | B9: 11975 | C9: 8880 | D9: 729 | E9: 1112 | F9: 1254 | G9: 100 | H9: 74.15448852 | I9: 6.087682672 | J9: 9.286012526 | K9: 10.47181628
A10: 90 2 | B10: 12329 | C10: 9193 | D10: 737 | E10: 1115 | F10: 1284 | G10: 100 | H10: 74.56403601 | I10: 5.977775975 | J10: 9.043718063 | K10: 10.41446995
A11: 91 3 | B11: 12687 | C11: 9528 | D11: 758 | E11: 1165 | F11: 1236 | G11: 100 | H11: 75.10049657 | I11: 5.974619689 | J11: 9.182627887 | K11: 9.742255852
A12: 92 4 | B12: 12777 | C12: 9649 | D12: 711 | E12: 1151 | F12: 1266 | G12: 100 | H12: 75.51850982 | I12: 5.564686546 | J12: 9.008374423 | K12: 9.908429209
A13: 1993 平成5年 | B13: 13263 | C13: 10053 | D13: 802 | E13: 1165 | F13: 1243 | G13: 100 | H13: 75.79733092 | I13: 6.046897384 | J13: 8.783834728 | K13: 9.371936968
A14: 94 6 | B14: 12975 | C14: 9813 | D14: 766 | E14: 1255 | F14: 1141 | G14: 100 | H14: 75.6300578 | I14: 5.903660886 | J14: 9.672447013 | K14: 8.793834297
A15: 95 7 | B15: 13026 | C15: 9916 | D15: 775 | E15: 1205 | F15: 1130 | G15: 100 | H15: 76.12467373 | I15: 5.949639183 | J15: 9.250729311 | K15: 8.674957777
A16: 96 8 | B16: 13111 | C16: 9927 | D16: 780 | E16: 1215 | F16: 1189 | G16: 100 | H16: 75.71504843 | I16: 5.949202959 | J16: 9.267027687 | K16: 9.068720921
A17: 97 9 | B17: 12417 | C17: 9293 | D17: 798 | E17: 1179 | F17: 1147 | G17: 100 | H17: 74.84094387 | I17: 6.426673109 | J17: 9.495047113 | K17: 9.23733591
A18: 1998 平成10年 | B18: 12500 | C18: 9360 | D18: 799 | E18: 1170 | F18: 1171 | G18: 100 | H18: 74.88 | I18: 6.392 | J18: 9.36 | K18: 9.368
A19: 99 11 | B19: 12032 | C19: 9099 | D19: 699 | E19: 1149 | F19: 1085 | G19: 100 | H19: 75.62333777 | I19: 5.809507979 | J19: 9.549534574 | K19: 9.017619681
A20: 2000 12 | B20: 12642 | C20: 9399 | D20: 782 | E20: 1288 | F20: 1173 | G20: 100 | H20: 74.34741338 | I20: 6.185730106 | J20: 10.18826135 | K20: 9.278595159
A21: 01 13 | B21: 12430 | C21: 9104 | D21: 824 | E21: 1317 | F21: 1185 | G21: 100 | H21: 73.24215607 | I21: 6.629123089 | J21: 10.59533387 | K21: 9.533386967
A22: 02 14 | B22: 12118 | C22: 8728 | D22: 855 | E22: 1309 | F22: 1226 | G22: 100 | H22: 72.02508665 | I22: 7.055619739 | J22: 10.80211256 | K22: 10.11718105
A23: 03 15 | B23: 12158 | C23: 8723 | D23: 816 | E23: 1313 | F23: 1306 | G23: 100 | H23: 71.74699786 | I23: 6.711630202 | J23: 10.7994736 | K23: 10.74189834
A24: 04 16 | B24: 11554 | C24: 8228 | D24: 798 | E24: 1326 | F24: 1202 | G24: 100 | H24: 71.21343258 | I24: 6.906698979 | J24: 11.47654492 | K24: 10.40332352
A25: 05 17 | B25: 11191 | C25: 7944 | D25: 812 | E25: 1271 | F25: 1164 | G25: 100 | H25: 70.98561344 | I25: 7.255830578 | J25: 11.35734072 | K25: 10.40121526
A26: 06 18 | B26: 11644 | C26: 8166 | D26: 873 | E26: 1369 | F26: 1236 | G26: 100 | H26: 70.13053933 | I26: 7.497423566 | J26: 11.75712813 | K26: 10.61490897
A27: 07 19 | B27: 11357 | C27: 8063 | D27: 754 | E27: 1332 | F27: 1208 | G27: 100 | H27: 70.99586158 | I27: 6.639077221 | J27: 11.72844941 | K27: 10.63661178
A28: 08 20 | B28: 11625 | C28: 8251 | D28: 856 | E28: 1234 | F28: 1284 | G28: 100 | H28: 70.97634409 | I28: 7.36344086 | J28: 10.61505376 | K28: 11.04516129
A29: 09 21 | B29: 11225 | C29: 7970 | D29: 821 | E29: 1255 | F29: 1179 | G29: 100 | H29: 71.00222717 | I29: 7.31403118 | J29: 11.18040089 | K29: 10.50334076
A30: 10 22 | B30: 11522 | C30: 8138 | D30: 820 | E30: 1317 | F30: 1247 | G30: 100 | H30: 70.63009894 | I30: 7.116819997 | J30: 11.43030724 | K30: 10.82277382
A31: 11 23 | B31: 10576 | C31: 7448 | D31: 776 | E31: 1201 | F31: 1151 | G31: 100 | H31: 70.42360061 | I31: 7.337367625 | J31: 11.35590015 | K31: 10.88313162
A32: 12 24 | B32: 10859 | C32: 7610 | D32: 753 | E32: 1314 | F32: 1182 | G32: 100 | H32: 70.08011787 | I32: 6.934340179 | J32: 12.10056175 | K32: 10.8849802
A33: 13 25 | B33: 10914 | C33: 7516 | D33: 848 | E33: 1319 | F33: 1231 | G33: 100 | H33: 68.86567711 | I33: 7.769836907 | J33: 12.08539491 | K33: 11.27909108
A34: 14 26 | B34: 10752 | C34: 7396 | D34: 806 | E34: 1319 | F34: 1231 | G34: 100 | H34: 68.78720238 | I34: 7.496279762 | J34: 12.26748512 | K34: 11.44903274
A35: 15 27 | B35: 10800 | C35: 7401 | D35: 759 | E35: 1344 | F35: 1296 | G35: 100 | H35: 68.52777778 | I35: 7.027777778 | J35: 12.44444444 | K35: 12
A36: 16 26 | B36: 10495 | C36: 7180 | D36: 786 | E36: 1325 | F36: 1204 | G36: 100 | H36: 68.4 | I36: 7.5 | J36: 12.6 | K36: 11.5
A37: 17 29 | B37: 10134 | C37: 6993 | D37: 771 | E37: 1250 | F37: 1120 | G37: 100 | H37: 69.0053286 | I37: 7.608052102 | J37: 12.33471482 | K37: 11.05190448
A38: 18 30 | B38: =SUM(C38,F38,D38,E38) -> 9878 | C38: ='[1]■2 初婚再婚の組合せ別，年次別婚姻件数・再婚割合'!$C$5 -> 6825 | D38: ='[1]■2 初婚再婚の組合せ別，年次別婚姻件数・再婚割合'!$D$5 -> 740 | E38: ='[1]■2 初婚再婚の組合せ別，年次別婚姻件数・再婚割合'!$E$5 -> 1187 | F38: ='[1]■2 初婚再婚の組合せ別，年次別婚姻件数・再婚割合'!$F$5 -> 1126 | G38: =SUM(H38:K38) -> 100 | H38: =C38/$B38*100 -> 69.09293379 | I38: =D38/$B38*100 -> 7.491395019 | J38: =E38/$B38*100 -> 12.01660255 | K38: =F38/$B38*100 -> 11.39906864

Sheet 3 初婚再婚の組合せ別，区別婚姻件数・再婚割合
A1: 3 夫妻の初婚・再婚の組合せ別にみた区別婚姻件数及び百分率
K2: 平成30年
A3: 区 | B3: 婚姻件数 | G3: 百分率
B4: 総数 | C4: 夫妻とも 初 婚 | D4: 夫初婚 妻再婚 | E4: 夫再婚 妻初婚 | F4: 夫妻とも 再 婚 | G4: 総数 | H4: 夫妻とも 初 婚 | I4: 夫初婚 妻再婚 | J4: 夫再婚 妻初婚 | K4: 夫妻とも 再 婚
A5: 総数 | B5: =SUM(C5,F5,D5,E5) -> 9878 | C5: =SUM(C6:C15) -> 6825 | D5: =SUM(D6:D15) -> 740 | E5: =SUM(E6:E15) -> 1187 | F5: =SUM(F6:F15) -> 1126 | G5: =SUM(H5:K5) -> 100 | H5: =C5/$B5*100 -> 69.09293379 | I5: =D5/$B5*100 -> 7.491395019 | J5: 12.01660255 | K5: 11.39906864
A6: 中央 | B6: =SUM(C6,F6,D6,E6) -> 1556 | C6: 1117 | D6: 91 | E6: 220 | F6: 128 | G6: =SUM(H6:K6) -> 100 | H6: =C6/$B6*100 -> 71.78663239 | I6: 5.848329049 | J6: 14.13881748 | K6: 8.22622108
A7: 北 | B7: 1213 | C7: 803 | D7: 110 | E7: 133 | F7: 167 | G7: 100 | H7: 66.19950536 | I7: 9.068425392 | J7: 10.9645507 | K7: 13.76751855
A8: 東 | B8: 1408 | C8: 943 | D8: 115 | E8: 168 | F8: 182 | G8: 100 | H8: 66.97443182 | I8: 8.167613636 | J8: 11.93181818 | K8: 12.92613636
A9: 白石 | B9: 1455 | C9: 1048 | D9: 95 | E9: 158 | F9: 154 | G9: 100 | H9: 72.02749141 | I9: 6.529209622 | J9: 10.85910653 | K9: 10.58419244
A10: 厚別 | B10: 440 | C10: 298 | D10: 42 | E10: 55 | F10: 45 | G10: 100 | H10: 67.72727273 | I10: 9.545454545 | J10: 12.5 | K10: 10.22727273
A11: 豊平 | B11: 1458 | C11: 1082 | D11: 89 | E11: 156 | F11: 131 | G11: 100 | H11: 74.21124829 | I11: 6.104252401 | J11: 10.69958848 | K11: 8.984910837
A12: 清田 | B12: 312 | C12: 161 | D12: 33 | E12: 47 | F12: 71 | G12: 100 | H12: 51.6025641 | I12: 10.57692308 | J12: 15.06410256 | K12: 22.75641026
A13: 南 | B13: 445 | C13: 263 | D13: 43 | E13: 60 | F13: 79 | G13: 100 | H13: 59.1011236 | I13: 9.662921348 | J13: 13.48314607 | K13: 17.75280899
A14: 西 | B14: 1132 | C14: 824 | D14: 77 | E14: 130 | F14: 101 | G14: 100 | H14: 72.79151943 | I14: 6.802120141 | J14: 11.48409894 | K14: 8.922261484
A15: 手稲 | B15: 459 | C15: 286 | D15: 45 | E15: 60 | F15: 68 | G15: =SUM(H15:K15) -> 100 | H15: =C15/$B15*100 -> 62.30936819 | I15: =D15/$B15*100 -> 9.803921569 | J15: =E15/$B15*100 -> 13.07189542 | K15: =F15/$B15*100 -> 14.81481481

Sheet 4 届出月別，区別婚姻件数・百分率
A1: 4 届出月別にみた区別婚姻件数及び百分率
N2: ='3 初婚再婚の組合せ別，区別婚姻件数・再婚割合 '!$K$2 -> 平成30年
A3: 区 | B3: 総 数 | C3: 1 月 | D3: 2 月 | E3: 3 月 | F3: 4 月 | G3: 5 月 | H3: 6 月 | I3: 7 月 | J3: 8 月 | K3: 9 月 | L3: 10月 | M3: 11月 | N3: 12月
B4: 婚姻件数
A5: 総数 | B5: =SUM(C5:N5) -> 9878 | C5: =SUM(C6:C15) -> 668 | D5: =SUM(D6:D15) -> 882 | E5: =SUM(E6:E15) -> 933 | F5: 829 | G5: 747 | H5: 713 | I5: 845 | J5: 770 | K5: 927 | L5: 703 | M5: 994 | N5: =SUM(N6:N15) -> 867
A6: 中央 | B6: =SUM(C6:N6) -> 1556 | C6: 91 | D6: 169 | E6: 135 | F6: 116 | G6: 121 | H6: 110 | I6: 126 | J6: 123 | K6: 175 | L6: 95 | M6: 150 | N6: 145
A7: 北 | B7: =SUM(C7:N7) -> 1213 | C7: 87 | D7: 100 | E7: 132 | F7: 114 | G7: 89 | H7: 108 | I7: 91 | J7: 82 | K7: 103 | L7: 75 | M7: 132 | N7: 100
A8: 東 | B8: 1408 | C8: 96 | D8: 125 | E8: 135 | F8: 124 | G8: 103 | H8: 91 | I8: 120 | J8: 114 | K8: 136 | L8: 110 | M8: 137 | N8: 117
A9: 白石 | B9: 1455 | C9: 91 | D9: 126 | E9: 118 | F9: 116 | G9: 115 | H9: 114 | I9: 114 | J9: 123 | K9: 143 | L9: 100 | M9: 161 | N9: 134
A10: 厚別 | B10: 440 | C10: 26 | D10: 40 | E10: 46 | F10: 39 | G10: 37 | H10: 27 | I10: 43 | J10: 35 | K10: 40 | L10: 38 | M10: 41 | N10: 28
A11: 豊平 | B11: 1458 | C11: 99 | D11: 132 | E11: 146 | F11: 113 | G11: 111 | H11: 107 | I11: 129 | J11: 115 | K11: 127 | L11: 109 | M11: 142 | N11: 128
A12: 清田 | B12: 312 | C12: 24 | D12: 26 | E12: 34 | F12: 26 | G12: 23 | H12: 16 | I12: 30 | J12: 29 | K12: 24 | L12: 21 | M12: 28 | N12: 31
A13: 南 | B13: 445 | C13: 31 | D13: 45 | E13: 42 | F13: 45 | G13: 38 | H13: 25 | I13: 37 | J13: 29 | K13: 34 | L13: 32 | M13: 47 | N13: 40
A14: 西 | B14: 1132 | C14: 83 | D14: 87 | E14: 101 | F14: 101 | G14: 82 | H14: 79 | I14: 125 | J14: 80 | K14: 100 | L14: 85 | M14: 111 | N14: 98
A15: 手稲 | B15: 459 | C15: 40 | D15: 32 | E15: 44 | F15: 35 | G15: 28 | H15: 36 | I15: 30 | J15: 40 | K15: 45 | L15: 38 | M15: 45 | N15: 46
B16: 百分率
A17: 総数 | B17: =SUM(C17:N17) -> 100 | C17: =C5/$B5*100 -> 6.762502531 | D17: =D5/$B5*100 -> 8.928932982 | E17: 9.445231828 | F17: 8.392387123 | G17: 7.562259567 | H17: 7.218060336 | I17: 8.554363231 | J17: 7.795100223 | K17: 9.384490788 | L17: 7.116825268 | M17: 10.06276574 | N17: 8.777080381
A18: 中央 | B18: =SUM(C18:N18) -> 100 | C18: =C6/$B6*100 -> 5.848329049 | D18: =D6/$B6*100 -> 10.86118252 | E18: 8.676092545 | F18: 7.455012853 | G18: 7.776349614 | H18: 7.06940874 | I18: 8.097686375 | J18: 7.904884319 | K18: 11.24678663 | L18: 6.105398458 | M18: 9.640102828 | N18: 9.318766067
A19: 北 | B19: 100 | C19: 7.172300082 | D19: =D7/$B7*100 -> 8.244023083 | E19: 10.88211047 | F19: 9.398186315 | G19: 7.337180544 | H19: 8.90354493 | I19: 7.502061006 | J19: 6.760098928 | K19: 8.491343776 | L19: 6.183017312 | M19: 10.88211047 | N19: 8.244023083
A20: 東 | B20: 100 | C20: 6.818181818 | D20: =D8/$B8*100 -> 8.877840909 | E20: 9.588068182 | F20: 8.806818182 | G20: 7.315340909 | H20: 6.463068182 | I20: 8.522727273 | J20: 8.096590909 | K20: 9.659090909 | L20: 7.8125 | M20: 9.730113636 | N20: 8.309659091
A21: 白石 | B21: 100 | C21: 6.254295533 | D21: =D9/$B9*100 -> 8.659793814 | E21: 8.109965636 | F21: 7.972508591 | G21: 7.903780069 | H21: 7.835051546 | I21: 7.835051546 | J21: 8.453608247 | K21: 9.828178694 | L21: 6.872852234 | M21: 11.0652921 | N21: 9.209621993
A22: 厚別 | B22: 100 | C22: 5.909090909 | D22: =D10/$B10*100 -> 9.090909091 | E22: 10.45454545 | F22: 8.863636364 | G22: 8.409090909 | H22: 6.136363636 | I22: 9.772727273 | J22: 7.954545455 | K22: 9.090909091 | L22: 8.636363636 | M22: 9.318181818 | N22: 6.363636364
A23: 豊平 | B23: 100 | C23: 6.790123457 | D23: =D11/$B11*100 -> 9.053497942 | E23: 10.01371742 | F23: 7.750342936 | G23: 7.613168724 | H23: 7.338820302 | I23: 8.847736626 | J23: 7.887517147 | K23: 8.710562414 | L23: 7.475994513 | M23: 9.739368999 | N23: 8.77914952
A24: 清田 | B24: 100 | C24: 7.692307692 | D24: =D12/$B12*100 -> 8.333333333 | E24: 10.8974359 | F24: 8.333333333 | G24: 7.371794872 | H24: 5.128205128 | I24: 9.615384615 | J24: 9.294871795 | K24: 7.692307692 | L24: 6.730769231 | M24: 8.974358974 | N24: 9.935897436
A25: 南 | B25: 100 | C25: 6.966292135 | D25: =D13/$B13*100 -> 10.11235955 | E25: 9.438202247 | F25: 10.11235955 | G25: 8.539325843 | H25: 5.617977528 | I25: 8.314606742 | J25: 6.516853933 | K25: 7.640449438 | L25: 7.191011236 | M25: 10.56179775 | N25: 8.988764045
A26: 西 | B26: 100 | C26: =C14/$B14*100 -> 7.332155477 | D26: 7.685512367 | E26: 8.922261484 | F26: 8.922261484 | G26: 7.243816254 | H26: 6.978798587 | I26: 11.04240283 | J26: 7.067137809 | K26: 8.833922261 | L26: 7.508833922 | M26: 9.80565371 | N26: 8.657243816
A27: 手稲 | B27: 100 | C27: =C15/$B15*100 -> 8.71459695 | D27: 6.97167756 | E27: 9.586056645 | F27: 7.625272331 | G27: 6.100217865 | H27: 7.843137255 | I27: 6.535947712 | J27: 8.71459695 | K27: 9.803921569 | L27: 8.278867102 | M27: 9.803921569 | N27: 10.02178649

Sheet 5 夫妻の年齢別（5歳階級），婚姻件数・百分率
A1: 5 夫妻の年齢（5歳階級）別にみた婚姻件数及び百分率
O2: ='3 初婚再婚の組合せ別，区別婚姻件数・再婚割合 '!$K$2 -> 平成30年
A3: 妻の年齢 | B3: 夫 の 年 齢
B4: 総 数 | C4: 19歳以下 | D4: 20～24 | E4: 25～29 | F4: 30～34 | G4: 35～39 | H4: 40～44 | I4: 45～49 | J4: 50～54 | K4: 55～59 | L4: 60～64 | M4: 65～69 | N4: 70歳～ | O4: 不 詳
B5: 婚姻件数
A6: 総 数 | B6: =SUM(C6:O6) -> 9878 | C6: =SUM(C7:C19) -> 49 | D6: =SUM(D7:D19) -> 945 | E6: 2992 | F6: 2351 | G6: 1366 | H6: 849 | I6: 577 | J6: 284 | K6: 167 | L6: 106 | M6: 75 | N6: 117 | O6: 0
A7: 19歳以下 | B7: =SUM(C7:O7) -> 86 | C7: 31 | D7: 42 | E7: 5 | F7: 6 | G7: 1 | H7: 0 | I7: 1 | J7: 0 | K7: 0 | L7: 0 | M7: 0 | N7: 0 | O7: 0
A8: 20～24 | B8: =SUM(C8:O8) -> 1464 | C8: 15 | D8: 647 | E8: 498 | F8: 190 | G8: 72 | H8: 26 | I8: 13 | J8: 2 | K8: 0 | L8: 1 | M8: 0 | N8: 0 | O8: 0
A9: 25～29 | B9: 3407 | C9: 2 | D9: 200 | E9: 1975 | F9: 836 | G9: 254 | H9: 90 | I9: 44 | J9: 3 | K9: 2 | L9: 1 | M9: 0 | N9: 0 | O9: 0
A10: 30～34 | B10: 2230 | C10: 1 | D10: 47 | E10: 422 | F10: 1020 | G10: 460 | H10: 182 | I10: 71 | J10: 22 | K10: 3 | L10: 2 | M10: 0 | N10: 0 | O10: 0
A11: 35～39 | B11: 1197 | C11: 0 | D11: 5 | E11: 75 | F11: 234 | G11: 446 | H11: 271 | I11: 112 | J11: 35 | K11: 13 | L11: 4 | M11: 1 | N11: 1 | O11: 0
A12: 40～44 | B12: 592 | C12: 0 | D12: 3 | E12: 13 | F12: 47 | G12: 107 | H12: 197 | I12: 146 | J12: 50 | K12: 18 | L12: 6 | M12: 3 | N12: 2 | O12: 0
A13: 45～49 | B13: 375 | C13: 0 | D13: 1 | E13: 4 | F13: 15 | G13: 25 | H13: 58 | I13: 137 | J13: 75 | K13: 33 | L13: 17 | M13: 4 | N13: 6 | O13: 0
A14: 50～54 | B14: 213 | C14: 0 | D14: 0 | E14: 0 | F14: 3 | G14: 0 | H14: 22 | I14: 38 | J14: 76 | K14: 45 | L14: 14 | M14: 8 | N14: 7 | O14: 0
A15: 55～59 | B15: 113 | C15: 0 | D15: 0 | E15: 0 | F15: 0 | G15: 1 | H15: 3 | I15: 10 | J15: 13 | K15: 34 | L15: 25 | M15: 11 | N15: 16 | O15: 0
A16: 60～64 | B16: 81 | C16: 0 | D16: 0 | E16: 0 | F16: 0 | G16: 0 | H16: 0 | I16: 3 | J16: 7 | K16: 11 | L16: 22 | M16: 22 | N16: 16 | O16: 0
A17: 65～69 | B17: 56 | C17: 0 | D17: 0 | E17: 0 | F17: 0 | G17: 0 | H17: 0 | I17: 2 | J17: 0 | K17: 7 | L17: 11 | M17: 19 | N17: 17 | O17: 0
A18: 70歳～ | B18: 64 | C18: 0 | D18: 0 | E18: 0 | F18: 0 | G18: 0 | H18: 0 | I18: 0 | J18: 1 | K18: 1 | L18: 3 | M18: 7 | N18: 52 | O18: 0
A19: 不 詳 | B19: 0 | C19: 0 | D19: 0 | E19: 0 | F19: 0 | G19: 0 | H19: 0 | I19: 0 | J19: 0 | K19: 0 | L19: 0 | M19: 0 | N19: 0 | O19: 0
B20: 百分率
A21: 総 数 | B21: =SUM(C21:O21) -> 100 | C21: =C6/$B$6*100 -> 0.4960518324 | D21: 9.56671391 | E21: 30.28953229 | F21: 23.80036445 | G21: 13.82871027 | H21: 8.594857259 | I21: 5.841263414 | J21: 2.875075926 | K21: 1.690625633 | L21: 1.073091719 | M21: 0.7592630087 | N21: 1.184450294 | O21: 0
A22: 19歳以下 | B22: =B7/$B$6*100 -> 0.8706215833 | C22: =C7/$B$6*100 -> 0.3138287103 | D22: =D7/$B$6*100 -> 0.4251872849 | E22: 0.05061753391 | F22: 0.0607410407 | G22: 0.01012350678 | H22: 0 | I22: 0.01012350678 | J22: 0 | K22: 0 | L22: 0 | M22: 0 | N22: 0 | O22: 0
A23: 20～24 | B23: 14.82081393 | C23: =C8/$B$6*100 -> 0.1518526017 | D23: 6.549908888 | E23: 5.041506378 | F23: 1.923466289 | G23: 0.7288924884 | H23: 0.2632111764 | I23: 0.1316055882 | J23: 0.02024701357 | K23: 0 | L23: 0.01012350678 | M23: 0 | N23: 0 | O23: 0
A24: 25～29 | B24: 34.49078761 | C24: =C9/$B$6*100 -> 0.02024701357 | D24: 2.024701357 | E24: 19.9939259 | F24: 8.46325167 | G24: 2.571370723 | H24: 0.9111156104 | I24: 0.4454342984 | J24: 0.03037052035 | K24: 0.02024701357 | L24: 0.01012350678 | M24: 0 | N24: 0 | O24: 0
A25: 30～34 | B25: 22.57542013 | C25: =C10/$B$6*100 -> 0.01012350678 | D25: 0.4758048188 | E25: 4.272119862 | F25: 10.32597692 | G25: 4.65681312 | H25: 1.842478234 | I25: 0.7187689816 | J25: 0.2227171492 | K25: 0.03037052035 | L25: 0.02024701357 | M25: 0 | N25: 0 | O25: 0
A26: 35～39 | B26: 12.11783762 | C26: =C11/$B$6*100 -> 0 | D26: 0.05061753391 | E26: 0.7592630087 | F26: 2.368900587 | G26: 4.515084025 | H26: 2.743470338 | I26: 1.13383276 | J26: 0.3543227374 | K26: 0.1316055882 | L26: 0.04049402713 | M26: 0.01012350678 | N26: 0.01012350678 | O26: 0
A27: 40～44 | B27: 5.993116015 | C27: =C12/$B$6*100 -> 0 | D27: 0.03037052035 | E27: 0.1316055882 | F27: 0.4758048188 | G27: 1.083215226 | H27: 1.994330836 | I27: 1.47803199 | J27: 0.5061753391 | K27: 0.1822231221 | L27: 0.0607410407 | M27: 0.03037052035 | N27: 0.02024701357 | O27: 0
A28: 45～49 | B28: 3.796315044 | C28: =C13/$B$6*100 -> 0 | D28: 0.01012350678 | E28: 0.04049402713 | F28: 0.1518526017 | G28: 0.2530876696 | H28: 0.5871633934 | I28: 1.386920429 | J28: 0.7592630087 | K28: 0.3340757238 | L28: 0.1720996153 | M28: 0.04049402713 | N28: 0.0607410407 | O28: 0
A29: 50～54 | B29: 2.156306945 | C29: =C14/$B$6*100 -> 0 | D29: 0 | E29: 0 | F29: 0.03037052035 | G29: 0 | H29: 0.2227171492 | I29: 0.3846932577 | J29: 0.7693865155 | K29: 0.4555578052 | L29: 0.141729095 | M29: 0.08098805426 | N29: 0.07086454748 | O29: 0
A30: 55～59 | B30: 1.143956266 | C30: =C15/$B$6*100 -> 0 | D30: 0 | E30: 0 | F30: 0 | G30: 0.01012350678 | H30: 0.03037052035 | I30: 0.1012350678 | J30: 0.1316055882 | K30: 0.3441992306 | L30: 0.2530876696 | M30: 0.1113585746 | N30: 0.1619761085 | O30: 0
A31: 60～64 | B31: 0.8200040494 | C31: =C16/$B$6*100 -> 0 | D31: 0 | E31: 0 | F31: 0 | G31: 0 | H31: 0 | I31: 0.03037052035 | J31: 0.07086454748 | K31: 0.1113585746 | L31: 0.2227171492 | M31: 0.2227171492 | N31: 0.1619761085 | O31: 0
A32: 65～69 | B32: 0.5669163798 | C32: =C17/$B$6*100 -> 0 | D32: 0 | E32: 0 | F32: 0 | G32: 0 | H32: 0 | I32: 0.02024701357 | J32: 0 | K32: 0.07086454748 | L32: 0.1113585746 | M32: 0.1923466289 | N32: 0.1720996153 | O32: 0
A33: 70歳～ | B33: 0.6479044341 | C33: =C18/$B$6*100 -> 0 | D33: 0 | E33: 0 | F33: 0 | G33: 0 | H33: 0 | I33: 0 | J33: 0.01012350678 | K33: 0.01012350678 | L33: 0.03037052035 | M33: 0.07086454748 | N33: 0.5264223527 | O33: 0
A34: 不 詳 | B34: 0 | C34: =C19/$B$6*100 -> 0 | D34: 0 | E34: 0 | F34: 0 | G34: 0 | H34: 0 | I34: 0 | J34: 0 | K34: 0 | L34: 0 | M34: 0 | N34: 0 | O34: 0

Sheet 6 夫妻の年齢別（5歳階級），初婚夫妻の婚姻件数・百分率
A1: 6 夫妻の年齢（5歳階級）別にみた初婚夫妻の婚姻件数及び百分率
O2: ='3 初婚再婚の組合せ別，区別婚姻件数・再婚割合 '!$K$2 -> 平成30年
A3: 妻の年齢 | B3: 夫 の 年 齢
B4: 総 数 | C4: 19歳以下 | D4: 20～24 | E4: 25～29 | F4: 30～34 | G4: 35～39 | H4: 40～44 | I4: 45～49 | J4: 50～54 | K4: 55～59 | L4: 60～64 | M4: 65～69 | N4: 70歳～ | O4: 不 詳
B5: 婚姻件数
A6: 総 数 | B6: =SUM(C6:O6) -> 6825 | C6: =SUM(C7:C19) -> 48 | D6: =SUM(D7:D19) -> 882 | E6: 2712 | F6: 1807 | G6: 804 | H6: 364 | I6: 159 | J6: 35 | K6: 9 | L6: 4 | M6: 1 | N6: 0 | O6: 0
A7: 19歳以下 | B7: =SUM(C7:O7) -> 82 | C7: 31 | D7: 41 | E7: 4 | F7: 5 | G7: 1 | H7: 0 | I7: 0 | J7: 0 | K7: 0 | L7: 0 | M7: 0 | N7: 0 | O7: 0
A8: 20～24 | B8: =SUM(C8:O8) -> 1294 | C8: 15 | D8: 620 | E8: 457 | F8: 141 | G8: 46 | H8: 11 | I8: 4 | J8: 0 | K8: 0 | L8: 0 | M8: 0 | N8: 0 | O8: 0
A9: 25～29 | B9: 2950 | C9: 2 | D9: 182 | E9: 1853 | F9: 687 | G9: 162 | H9: 47 | I9: 15 | J9: 1 | K9: 0 | L9: 1 | M9: 0 | N9: 0 | O9: 0
A10: 30～34 | B10: 1587 | C10: 0 | D10: 34 | E10: 343 | F10: 786 | G10: 300 | H10: 97 | I10: 25 | J10: 2 | K10: 0 | L10: 0 | M10: 0 | N10: 0 | O10: 0
A11: 35～39 | B11: 645 | C11: 0 | D11: 4 | E11: 48 | F11: 166 | G11: 250 | H11: 127 | I11: 43 | J11: 7 | K11: 0 | L11: 0 | M11: 0 | N11: 0 | O11: 0
A12: 40～44 | B12: 189 | C12: 0 | D12: 1 | E12: 5 | F12: 17 | G12: 40 | H12: 67 | I12: 45 | J12: 11 | K12: 3 | L12: 0 | M12: 0 | N12: 0 | O12: 0
A13: 45～49 | B13: 56 | C13: 0 | D13: 0 | E13: 2 | F13: 4 | G13: 5 | H13: 11 | I13: 23 | J13: 10 | K13: 1 | L13: 0 | M13: 0 | N13: 0 | O13: 0
A14: 50～54 | B14: 13 | C14: 0 | D14: 0 | E14: 0 | F14: 1 | G14: 0 | H14: 4 | I14: 2 | J14: 4 | K14: 2 | L14: 0 | M14: 0 | N14: 0 | O14: 0
A15: 55～59 | B15: 4 | C15: 0 | D15: 0 | E15: 0 | F15: 0 | G15: 0 | H15: 0 | I15: 2 | J15: 0 | K15: 1 | L15: 1 | M15: 0 | N15: 0 | O15: 0
A16: 60～64 | B16: 3 | C16: 0 | D16: 0 | E16: 0 | F16: 0 | G16: 0 | H16: 0 | I16: 0 | J16: 0 | K16: 1 | L16: 1 | M16: 1 | N16: 0 | O16: 0
A17: 65～69 | B17: 2 | C17: 0 | D17: 0 | E17: 0 | F17: 0 | G17: 0 | H17: 0 | I17: 0 | J17: 0 | K17: 1 | L17: 1 | M17: 0 | N17: 0 | O17: 0
A18: 70歳～ | B18: 0 | C18: 0 | D18: 0 | E18: 0 | F18: 0 | G18: 0 | H18: 0 | I18: 0 | J18: 0 | K18: 0 | L18: 0 | M18: 0 | N18: 0 | O18: 0
A19: 不 詳 | B19: 0 | C19: 0 | D19: 0 | E19: 0 | F19: 0 | G19: 0 | H19: 0 | I19: 0 | J19: 0 | K19: 0 | L19: 0 | M19: 0 | N19: 0 | O19: 0
B20: 百分率
A21: 総 数 | B21: =SUM(C21:O21) -> 100 | C21: =C6/$B$6*100 -> 0.7032967033 | D21: 12.92307692 | E21: 39.73626374 | F21: 26.47619048 | G21: 11.78021978 | H21: 5.333333333 | I21: 2.32967033 | J21: 0.5128205128 | K21: 0.1318681319 | L21: 0.05860805861 | M21: 0.01465201465 | N21: 0 | O21: 0
A22: 19歳以下 | B22: =B7/$B$6*100 -> 1.201465201 | C22: =C7/$B$6*100 -> 0.4542124542 | D22: 0.6007326007 | E22: 0.05860805861 | F22: 0.07326007326 | G22: 0.01465201465 | H22: 0 | I22: 0 | J22: 0 | K22: 0 | L22: 0 | M22: 0 | N22: 0 | O22: 0
A23: 20～24 | B23: 18.95970696 | C23: 0.2197802198 | D23: 9.084249084 | E23: 6.695970696 | F23: 2.065934066 | G23: 0.673992674 | H23: 0.1611721612 | I23: 0.05860805861 | J23: 0 | K23: 0 | L23: 0 | M23: 0 | N23: 0 | O23: 0
A24: 25～29 | B24: 43.22344322 | C24: 0.0293040293 | D24: 2.666666667 | E24: 27.15018315 | F24: 10.06593407 | G24: 2.373626374 | H24: 0.6886446886 | I24: 0.2197802198 | J24: 0.01465201465 | K24: 0 | L24: 0.01465201465 | M24: 0 | N24: 0 | O24: 0
A25: 30～34 | B25: 23.25274725 | C25: 0 | D25: 0.4981684982 | E25: 5.025641026 | F25: 11.51648352 | G25: 4.395604396 | H25: 1.421245421 | I25: 0.3663003663 | J25: 0.0293040293 | K25: 0 | L25: 0 | M25: 0 | N25: 0 | O25: 0
A26: 35～39 | B26: 9.450549451 | C26: 0 | D26: 0.05860805861 | E26: 0.7032967033 | F26: 2.432234432 | G26: 3.663003663 | H26: 1.860805861 | I26: 0.63003663 | J26: 0.1025641026 | K26: 0 | L26: 0 | M26: 0 | N26: 0 | O26: 0
A27: 40～44 | B27: 2.769230769 | C27: 0 | D27: 0.01465201465 | E27: 0.07326007326 | F27: 0.2490842491 | G27: 0.5860805861 | H27: 0.9816849817 | I27: 0.6593406593 | J27: 0.1611721612 | K27: 0.04395604396 | L27: 0 | M27: 0 | N27: 0 | O27: 0
A28: 45～49 | B28: 0.8205128205 | C28: 0 | D28: 0 | E28: 0.0293040293 | F28: 0.05860805861 | G28: 0.07326007326 | H28: 0.1611721612 | I28: 0.336996337 | J28: 0.1465201465 | K28: 0.01465201465 | L28: 0 | M28: 0 | N28: 0 | O28: 0
A29: 50～54 | B29: 0.1904761905 | C29: 0 | D29: 0 | E29: 0 | F29: 0.01465201465 | G29: 0 | H29: 0.05860805861 | I29: 0.0293040293 | J29: 0.05860805861 | K29: 0.0293040293 | L29: 0 | M29: 0 | N29: 0 | O29: 0
A30: 55～59 | B30: 0.05860805861 | C30: 0 | D30: 0 | E30: 0 | F30: 0 | G30: 0 | H30: 0 | I30: 0.0293040293 | J30: 0 | K30: 0.01465201465 | L30: 0.01465201465 | M30: 0 | N30: 0 | O30: 0
A31: 60～64 | B31: 0.04395604396 | C31: 0 | D31: 0 | E31: 0 | F31: 0 | G31: 0 | H31: 0 | I31: 0 | J31: 0 | K31: 0.01465201465 | L31: 0.01465201465 | M31: 0.01465201465 | N31: 0 | O31: 0
A32: 65～69 | B32: 0.0293040293 | C32: 0 | D32: 0 | E32: 0 | F32: 0 | G32: 0 | H32: 0 | I32: 0 | J32: 0 | K32: 0.01465201465 | L32: 0.01465201465 | M32: 0 | N32: 0 | O32: 0
A33: 70歳～ | B33: 0 | C33: 0 | D33: 0 | E33: 0 | F33: 0 | G33: 0 | H33: 0 | I33: 0 | J33: 0 | K33: 0 | L33: 0 | M33: 0 | N33: 0 | O33: 0
A34: 不 詳 | B34: 0 | C34: 0 | D34: 0 | E34: 0 | F34: 0 | G34: 0 | H34: 0 | I34: 0 | J34: 0 | K34: 0 | L34: 0 | M34: 0 | N34: 0 | O34: 0

Sheet 7 年次別平均婚姻年齢・年齢差
A1: 7 初婚―再婚別にみた年次別平均婚姻年齢及び夫妻の年齢差
A3: 年 次 | B3: 全婚姻 1) | D3: 初婚 | F3: 再 婚 2) | H3: 年齢差
B4: 夫 | C4: 妻 | D4: 夫 | E4: 妻 | F4: 夫 | G4: 妻 | H4: 全婚姻 | I4: 初 婚 | J4: 再 婚
A5: 85 60 | B5: 29.7 | C5: 27.2 | D5: 28 | E5: 25.9 | F5: 39 | G5: 36 | H5: =B5-C5 -> 2.5 | I5: =D5-E5 -> 2.1 | J5: =F5-G5 -> 3
A6: 1986 昭和61年 | B6: 30 | C6: 27.4 | D6: 28.2 | E6: 26.1 | F6: 39.4 | G6: 36.4 | H6: =B6-C6 -> 2.6 | I6: =D6-E6 -> 2.1 | J6: =F6-G6 -> 3
A7: 1987 昭和62年 | B7: 30.1 | C7: 27.5 | D7: 28.2 | E7: 26.1 | F7: 39.6 | G7: 36.3 | H7: =B7-C7 -> 2.6 | I7: =D7-E7 -> 2.1 | J7: =F7-G7 -> 3.3
A8: 1988 昭和63年 | B8: 30.4 | C8: 27.8 | D8: 28.3 | E8: 26.2 | F8: 39.6 | G8: 36.5 | H8: 2.6 | I8: 2 | J8: 3.1
A9: 89 平成元年 | B9: 30.3 | C9: 27.8 | D9: 28.3 | E9: 26.1 | F9: 39.6 | G9: 37 | H9: 2.5 | I9: 2.1 | J9: 2.6
A10: 90 2 | B10: 30.5 | C10: 27.8 | D10: 28.3 | E10: 26.2 | F10: 40.5 | G10: 37.4 | H10: 2.7 | I10: 2 | J10: 3.1
A11: 91 3 | B11: 30.3 | C11: 27.7 | D11: 28.3 | E11: 26.1 | F11: 40 | G11: 37.3 | H11: 2.6 | I11: 2.1 | J11: 2.7
A12: 92 4 | B12: 30.4 | C12: 27.9 | D12: 28.4 | E12: 26.4 | F12: 40.7 | G12: 37.9 | H12: 2.5 | I12: 1.9 | J12: 2.8
A13: 1993 平成5年 | B13: 30.4 | C13: 28 | D13: 28.4 | E13: 26.5 | F13: 40.6 | G13: 37.5 | H13: 2.4 | I13: 1.9 | J13: 3.1
A14: 94 6 | B14: 30.4 | C14: 28 | D14: 28.4 | E14: 26.5 | F14: 40.6 | G14: 37.9 | H14: 2.4 | I14: 1.9 | J14: 2.7
A15: 95 7 | B15: 30.3 | C15: 28 | D15: 28.4 | E15: 26.6 | F15: 40.1 | G15: 37.4 | H15: 2.3 | I15: 1.8 | J15: 2.7
A16: 96 8 | B16: 30.4 | C16: 28.2 | D16: 28.5 | E16: 26.8 | F16: 40.4 | G16: 37.7 | H16: 2.2 | I16: 1.6 | J16: 2.7
A17: 97 9 | B17: 30.5 | C17: 28.3 | D17: 28.5 | E17: 26.9 | F17: 40.5 | G17: 37.4 | H17: 2.2 | I17: 1.6 | J17: 3.1
A18: 1998 平成10年 | B18: 30.5 | C18: 28.4 | D18: 28.6 | E18: 27 | F18: 40.2 | G18: 37.1 | H18: 2.1 | I18: 1.6 | J18: 3.1
A19: 99 11 | B19: 30.5 | C19: 28.5 | D19: 28.5 | E19: 27.1 | F19: 40.6 | G19: 37.8 | H19: 2 | I19: 1.4 | J19: 2.8
A20: 2000 12 | B20: 31.25518114 | C20: 29.15337763 | D20: 28.7 | E20: 27.3 | F20: 41.37342544 | G20: 39.07007673 | H20: 2.101803512 | I20: 1.5 | J20: 2.30334871
A21: 01 13 | B21: 31.38049075 | C21: 29.36195361 | D21: 28.91954573 | E21: 27.5 | F21: 41.14558353 | G21: 38.43558155 | H21: 2.018537141 | I21: 1.306840615 | J21: 2.710001983
A22: 02 14 | B22: 31.6681108 | C22: 29.6938645 | D22: 29 | E22: 27.7 | F22: 41.45407627 | G22: 38.87970527 | H22: 1.9742463 | I22: 1.29008237 | J22: 2.574370996
A23: 03 15 | B23: 32.13049707 | C23: 30.1121895 | D23: 29.46696893 | E23: 28.1 | F23: 41.83167876 | G23: 39.38147974 | H23: 2.018307562 | I23: 1.314667221 | J23: 2.450199022
A24: 04 16 | B24: 32.25984508 | C24: 30.09310628 | D24: 29.51754192 | E24: 28.20451294 | F24: 42.05099552 | G24: 39.11491667 | H24: 2.166738792 | I24: 1.313028972 | J24: 2.93607885
A25: 05 17 | B25: 32.49256099 | C25: 30.44561106 | D25: 29.76148736 | E25: 28.52180322 | F25: 42.31321013 | G25: 39.41721491 | H25: 2.04694993 | I25: 1.239684142 | J25: 2.895995218
A26: 06 18 | B26: 32.58270354 | C26: 30.48866369 | D26: 29.89726002 | E26: 28.5 | F26: 41.90083173 | G26: 39.17283073 | H26: 2.094039849 | I26: 1.329404751 | J26: 2.728001008
A27: 07 19 | B27: 32.76383141 | C27: 30.64491797 | D27: 30.01786322 | E27: 28.71569984 | F27: 42.29580052 | G27: 39.88294258 | H27: 2.118913445 | I27: 1.302163378 | J27: 2.412857949
A28: 08 20 | B28: 32.96133333 | C28: 30.89562007 | D28: 30.28349072 | E28: 28.78020559 | F28: 42.64644559 | G28: 40.27165109 | H28: 2.065713262 | I28: 1.503285134 | J28: 2.374794501
A29: 09 21 | B29: 33.09804751 | C29: 31.0447216 | D29: 30.31903841 | E29: 28.9865402 | F29: 43.13513421 | G29: 40.53808333 | H29: 2.053325909 | I29: 1.332498212 | J29: 2.597050876
A30: 10 22 | B30: 33.33394087 | C30: 31.28241625 | D30: 30.63829352 | E30: 29.25937775 | F30: 42.75188508 | G30: 40.53632479 | H30: 2.05152462 | I30: 1.378915764 | J30: 2.215560289
A31: 11 23 | B31: 33.41125347 | C31: 31.35809065 | D31: 30.66940256 | E31: 29.36166031 | F31: 42.99840561 | G31: 40.31871649 | H31: 2.053162821 | I31: 1.307742254 | J31: 2.679689127
A32: 12 24 | B32: 33.86185039 | C32: 31.72155202 | D32: 30.89003149 | E32: 29.67454804 | F32: 43.81911058 | G32: 41.16210164 | H32: 2.14029837 | I32: 1.215483453 | J32: 2.65700894
A33: 13 25 | B33: 33.86546332 | C33: 31.76499603 | D33: 31.02457955 | E33: 29.66053575 | F33: 43.18356209 | G33: 40.70819304 | H33: 2.10046729 | I33: 1.364043799 | J33: 2.47536905
A34: 14 26 | B34: 34.23569258 | C34: 32.01993428 | D34: 31.24559051 | E34: 29.83684261 | F34: 43.85326797 | G34: 41.35996564 | H34: 2.215758309 | I34: 1.408747898 | J34: 2.493302338
A35: 15 27 | B35: 34.28633488 | C35: 32.11940586 | D35: 31.19520016 | E35: 29.84878026 | F35: 43.84075126 | G35: 41.78199513 | H35: 2.166929012 | I35: 1.346419908 | J35: 2.058756129
A36: 16 28 | B36: 34.28633488 | C36: 32.11940586 | D36: 31.3 | E36: 29.9 | F36: 43.6 | G36: 41.5 | H36: 2.1 | I36: 1.4 | J36: 2.1
A37: 17 29 | B37: 34.309552 | C37: 32.09815144 | D37: 31.32119397 | E37: 29.85714141 | F37: 44.0992616 | G37: 41.86686938 | H37: 2.211400566 | I37: 1.464052559 | J37: 2.232392222
A38: 18 30 | B38: ='[1]■7 年次別平均婚姻年齢・年齢差'!$B$5 -> 34.42140784 | C38: ='[1]■7 年次別平均婚姻年齢・年齢差'!$C$5 -> 32.31510258 | D38: ='[1]■7 年次別平均婚姻年齢・年齢差'!$D$5 -> 31.23214364 | E38: ='[1]■7 年次別平均婚姻年齢・年齢差'!$E$5 -> 30.0029747 | F38: ='[1]■7 年次別平均婚姻年齢・年齢差'!$F$5 -> 44.85235625 | G38: ='[1]■7 年次別平均婚姻年齢・年齢差'!$G$5 -> 42.2426313 | H38: =B38-C38 -> 2.106305257 | I38: =D38-E38 -> 1.229168939 | J38: =F38-G38 -> 2.60972495
A39: 1) 平成11年までの全婚姻の平均婚姻年齢は本市の集計による。
A40: 2) 平成11年までの再婚の平均婚姻年齢は「同居を開始した年齢」である。

Sheet 8 婚姻件数，夫妻の年齢差別
A1: 8 夫妻の年齢差別にみた婚姻件数
G2: ='3 初婚再婚の組合せ別，区別婚姻件数・再婚割合 '!$K$2 -> 平成30年
A3: 年 齢 差 | B3: 全婚姻 | E3: 初婚夫妻
B4: 総 数 | C4: 夫 年 上 | D4: 妻 年 上 | E4: 総 数 | F4: 夫 年 上 | G4: 妻 年 上
A5: 総 数 | B5: =SUM(B6:B27) -> 9878 | C5: =SUM(C7:C27) -> 4971 | D5: =SUM(D7:D27) -> 2022 | E5: =SUM(E6:E27) -> 6825 | F5: =SUM(F7:F27) -> 3145 | G5: =SUM(G7:G27) -> 1336
A6: 夫妻同年 | B6: 2885 | C6: ・ | D6: ・ | E6: 2344 | F6: ・ | G6: ・
A7: 1歳 | B7: =C7+D7 -> 1481 | C7: 933 | D7: 548 | E7: =SUM(F7:G7) -> 1118 | F7: 712 | G7: 406
A8: 2 | B8: 1081 | C8: 694 | D8: 387 | E8: =SUM(F8:G8) -> 787 | F8: 505 | G8: 282
A9: 3 | B9: 866 | C9: 587 | D9: 279 | E9: 630 | F9: 421 | G9: 209
A10: 4 | B10: 740 | C10: 509 | D10: 231 | E10: 490 | F10: 335 | G10: 155
A11: 5 | B11: =C11+D11 -> 546 | C11: 407 | D11: 139 | E11: 357 | F11: 278 | G11: 79
A12: 6 | B12: 467 | C12: 352 | D12: 115 | E12: 276 | F12: 217 | G12: 59
A13: 7 | B13: 357 | C13: 280 | D13: 77 | E13: 190 | F13: 156 | G13: 34
A14: 8 | B14: 317 | C14: 246 | D14: 71 | E14: 173 | F14: 133 | G14: 40
A15: 9 | B15: 176 | C15: 139 | D15: 37 | E15: 97 | F15: 78 | G15: 19
A16: 10 | B16: 195 | C16: 151 | D16: 44 | E16: 94 | F16: 73 | G16: 21
A17: 11 | B17: 177 | C17: 149 | D17: 28 | E17: 75 | F17: 61 | G17: 14
A18: 12 | B18: 124 | C18: 106 | D18: 18 | E18: 52 | F18: 45 | G18: 7
A19: 13 | B19: 73 | C19: 66 | D19: 7 | E19: 30 | F19: 29 | G19: 1
A20: 14 | B20: 67 | C20: 57 | D20: 10 | E20: 26 | F20: 23 | G20: 3
A21: 15 | B21: 61 | C21: 54 | D21: 7 | E21: 25 | F21: 22 | G21: 3
A22: 16～20 | B22: 194 | C22: 174 | D22: 20 | E22: 50 | F22: 46 | G22: 4
A23: 21～25 | B23: 51 | C23: 47 | D23: 4 | E23: 9 | F23: 9 | G23: 0
A24: 26～30 | B24: 12 | C24: 12 | D24: 0 | E24: 1 | F24: 1 | G24: 0
A25: 31～35 | B25: 6 | C25: 6 | D25: 0 | E25: 1 | F25: 1 | G25: 0
A26: 36～40 | B26: 2 | C26: 2 | D26: 0 | E26: 0 | F26: 0 | G26: 0
A27: 41歳～ | B27: 0 | C27: 0 | D27: 0 | E27: 0 | F27: 0 | G27: 0
B30: 0 | E30: 0
